Workbook

Sheet Cover PageFLASH DRIVE BQ CL 104
A1: PROVINCIAL ADMINISTRATION OF KWAZULU-NATAL
A2: DEPARTMENT OF PUBLIC WORKS
A10: BILLS OF QUANTITIES
A12: with GCC for Construction Works - Second Edition 2010
A14: RETURNABLE DOCUMENT
A15: FLASH DRIVE
A16: PHASE 14: STORM DAMAGED PROGRAMME: REPAIRS AND RENOVATIONS TO STORM DAMAGED SCHOOLS THROUGHOUT THE PROVINCE OF KWAZULU-NATAL: MIDLANDS REGION: CLUSTER 104: MOWBRAY PRIMARY SCHOOL. OPEN BIDS.
A17: SCHOOL NAME | B17: WIMS NO. | C17: CONTRACT PERIOD | D17: TYPE OF CONTRACT
A18: MOWBRAY PRIMARY SCHOOL | B18: 063877 | C18: 8 CALENDAR MONTHS | D18: OPEN TENDER
A21: Engineer/Principal Agent | C21: Principal Agent/Programme Manager
A22: VNA Consulting (Pty) Ltd | C22: VNA Consulting (Pty) Ltd
A23: P.O Box 70803 | C23: P.O Box 70803
A24: Overport | C24: Durban
A25: Durban | C25: 4067
A26: 4067
A27: 031 -700 2500 - Tel Number | C27: 031 - 700 2500 - Tel Number
A28: 031 - 940 4243 - Fax Number | C28: 031 - 940 4243 - Fax Number
A29: anisa.vaid@vnac.co.za | C29: anisa.vaid@vnac.co.za
A31: Employer: | C31: Region:
A32: Head: Public Works | C32: Head Public Works: Operations
A33: KZN Department of Public Works | C33: KZN Department of Public Works
A34: Private Bag X 9041 | C34: X9041
A35: Pietermaritzburg | C35: Pietermaritzburg
A36: 3200 | C36: 3200
A37: Tel Number: 033 - 355 5569 | C37: Tel Number: | D37: 033 - 355 5569
A38: Fax Number: N/A | C38: Fax Number: | D38: N/A
A40: Bid Number: ZNTL04772W | C40: Project Code: | D40: 063877
A41: CIDB Grading 4GB or higher | C41: Document Date: | D41: As per Tender Advert
A42: ECDP Number: N/A | C42: Contract Period: | D42: =C18 -> 8 CALENDAR MONTHS
A44: Bidding Entity:
A45: CIDB Registration number:
A46: Central Suppliers Database Registration Number:

Sheet STORM14-MOWBRAY
A1: ='Cover PageFLASH DRIVE BQ CL 104'!A16:D16 -> PHASE 14: STORM DAMAGED PROGRAMME: REPAIRS AND RENOVATIONS TO STORM DAMAGED SCHOOLS THROUGHOUT THE PROVINCE OF KWAZULU-NATAL: MIDLANDS REGION: CLUSTER 104: MOWBRAY PRIMARY SCHOOL. OPEN BIDS.
A2: SCHOOL NAME | C2: WIMS NO. | D2: CONTRACT PERIOD | F2: TYPE OF CONTRACT
A3: ='Cover PageFLASH DRIVE BQ CL 104'!A18 -> MOWBRAY PRIMARY SCHOOL | C3: ='Cover PageFLASH DRIVE BQ CL 104'!B18 -> 063877 | D3: ='Cover PageFLASH DRIVE BQ CL 104'!C18 -> 8 CALENDAR MONTHS | F3: ='Cover PageFLASH DRIVE BQ CL 104'!D18 -> OPEN TENDER
A4: ='[1]Cover PageFLASH DRIVE BQ CL 127'!A44 -> Bidding Entity: | C4: ='Cover PageFLASH DRIVE BQ CL 104'!B44 -> 0
A5: BIDDERS TO NOTE THAT ALL FIELDS HIGHLIGTHED IN YELLOW TO BE FILLED IN ONLY
A6: ITEM NO | B6: DESCRIPTION | C6: UNIT | D6: QUANTITY | E6: RATE | F6: AMOUNT
B8: SECTION 1
B9: BILL NO. 1 PRELIMINARIES AND GENERAL (PROVISIONAL)
B11: See C2.2 - Preliminaries for GCC for Construction works - 2nd Edition (2010)
A13: 1 | B13: Preliminaries | C13: Item | D13: 1 | F13: =D13*E13 -> 0
B15: Total for Section No. 1: Bill No. 1 | F15: =SUM(F13:F14) -> 0
B17: SECTION 2
B18: BILL NO.1 : ALTERATIONS (PROVISIONAL)
B20: (CPAP WORK GROUP 102 UNLESS OTHERWISE STATED)
B22: SUPPLEMENTARY PREAMBLES
B24: The Tenderer is referred to the relevant Clauses in the Standard Preambles to All Trades and to the Supplementary Preambles which are incorporated in these Bills of Quantities.
B26: For Preambles refer to the relevant Clauses in the ASAQS Model Preambles for Trades 2008 and Supplementary Preambles which is incorporated in these Bills of Quantities.
B28: NOTE:
B30: Rates are to include for removal of all items unless otherwise described.
B32: Block Notation
B34: Note: For the purpose of tendering only the total quantity shall be used in calculating the amount for inclusion in the tender at the tendered rates. Block A : Admin Block and Classrooms Block B : Church Hall Block C : 3 Classroom Block X - External Works Y - General
B36: View site:
B38: Before submitting his tender the contractor shall visit the site and satisfy himself as to the nature and extent of the work to be done and the value of the materials contained in the buildings or portions of the buildings to be demolished. No claim for any variations of the contract sum in respect of the nature and extent of the work or of inferior or damaged materials will be entertained.
B40: Work and materials:
B42: The work to be done and the materials to be used in the works on site are to be similar to those specified in the new work so as they apply.
B44: Old materials:
B46: Old materials specified to be handed over are to be carefully made good and stored on the site where directed.
B48: Old materials to be carted away:
B50: Old materials from alterations except where described to be re-used or handed over, as well as rubbish, etc. must be regularly carted from the site and not be allowed to accumulate on or around the site.
B52: Demolitions:
B54: The items shall be reserved and remain the property of the employer and will be removed from the building by the contractor and handed over to the employer prior to the commencement of the demolitions. Should the tenderer have doubts concerning any of these items he shall seek clarification from the Principal Agent.
B56: Leave site clean and free of rubbish:
B58: The contractor shall progressively during the works and at completion collect and cart away all materials and debris resulting from the demolitions and also all earth, soil and rubbish.
B60: General:
B62: The contractor shall carry out the whole of the works with as little mess and noise as possible and with a minimum of disturbance to adjoining premises and their tenants. He shall provide proper protection and provide, erect and remove when directed, any temporary tarpaulins that may be necessary during the progress of the works, all to the satisfaction of the principal agent.
B64: Water supply pipes and other piping that may be encountered and found necessary to disconnect or cut, shall be effectually stopped off or grubbed up and removed, and any new connections that may be necessary shall be made with proper fittings, to the satisfaction of the principal agent.
B66: Doors, fanlights, fittings, frames, linings, etc which are to be re-used shall be thoroughly overhauled before refixing including taking off, easing and rehanging, cramping up, re-wedging as required and making good cramps, dowels, etc, and easing, oiling, adjusting and repairing ironmongery as necessary, replacing any glass damaged in removal or subsequently and stopping up all nail and screw holes with tinted plastic wood to match timber, unless otherwise described. Re-painting or re-varnishing is given separately.
B68: Prices for taking out of doors, windows, etc shall include for removal of all beads, architraves, ironmongery, etc.
B70: Prices for taking out and removing doors and frames shall include for removing door stops, cabin hooks, etc and making good floor and wall finishes to match existing.
B72: With regard to building up of openings in existing walls, cement screeds and pavings, granolithic, tops of walls, etc, shall be levelled and prepared for raising of brickwork.
B74: Making good of finishes shall include making good of the brick and concrete surfaces onto which the new finishes are applied, where necessary.
B76: The contractor will be held responsible for any damage to persons and property and for the safety of the structures and he is to allow for protecting and indemnifying persons using the existing buildings from injury by virtue of the building operations, including providing necessary barriers, signs, etc.
B78: The contractor will be required to take all dimensions affecting the existing buildings on the site and he will be held solely responsible for the accuracy of all such dimensions where used in the manufacture of new items (doors, windows, fittings, etc).
B80: Rates are deemed to include cart away and/or disposal at an approved dump site.
B82: HOARDING
B84: Hoarding, Roofing protection, etc.:
A86: 1 | B86: Shade cloth hoarding 1.8m high above natural ground level, including 300mm x 300mm x 300mm deep base, including 15Mpa/19mm mass concrete bases, excavation, backfilling etc, fixed to intermediate timber posts at 3m centres. | C86: m | D86: 68 | F86: =D86*E86 -> 0
B88: REMOVAL OF EXISTING WORK
B90: Demolish existing reinforced concrete including temporary propping, etc.:
A92: 2 | B92: 2450 x 2450 x 1000mm deep water tank stand. | C92: No | D92: 3 | F92: =D92*E92 -> 0
B94: Demolish existing unreinforced concrete, etc.:
A96: 3 | B96: Concrete steps. | C96: m2 | D96: 3 | F96: =D96*E96 -> 0
A98: 4 | B98: One blockwork. | C98: m2 | D98: 147 | F98: =D98*E98 -> 0
B100: Taking down and removing roofs, floors, panelling, ceilings, partitions, etc.:
A102: 5 | B102: Timber trusses and existing fittings. | C102: No | D102: 23 | F102: =D102*E102 -> 0
A104: 6 | B104: Timber rafters including existing fittings. | C104: m | D104: 82 | F104: =D104*E104 -> 0
A106: 7 | B106: Corrugated metal roof sheeting including ridge capping, purlins, battens, poly closers, underlay, etc. | C106: m2 | D106: 783 | F106: =D106*E106 -> 0
A108: 8 | B108: Fibre-cement ceilings including cornices, timber brandering, etc. | C108: m2 | D108: 210 | F108: =D108*E108 -> 0
A110: 9 | B110: Existing chalk boards. | C110: No | D110: 6 | F110: =D110*E110 -> 0
A112: 10 | B112: Fibre cement fascia boards including all fittings. | C112: m | D112: 176 | F112: =D112*E112 -> 0
A114: 11 | B114: Fibre cement barge boards including all fittings. | C114: m | D114: 64 | F114: =D114*E114 -> 0
A116: 12 | B116: Gutters including fittings. | C116: m | D116: 175 | F116: =D116*E116 -> 0
A118: 13 | B118: Downpipes including fittings. | C118: m | D118: 50 | F118: =D118*E118 -> 0
A120: 14 | B120: Water storage tank including all fittings. | C120: No | D120: 3 | F120: =D120*E120 -> 0
A122: 15 | B122: Steel plinth. | C122: No | D122: 1 | F122: =D122*E122 -> 0
B124: Taking out and removing timber doors, etc.:
A126: 16 | B126: Timber single door and steel frame 813 x 2032mm high overall from one brick wall. | C126: No | D126: 8 | F126: =D126*E126 -> 0
B128: Taking out and removing door from existing frame:
A130: 17 | B130: Timber single door. | C130: No | D130: 3 | F130: =D130*E130 -> 0
A132: 18 | B132: GMS gates: | C132: No | D132: 4 | F132: =D132*E132 -> 0
B134: Taking out/off and removing glass and mirrors:
A136: 19 | B136: Glass from steel windows, including cleaning out rebates and preparing for new glass (new glass elsewhere measured). | C136: m2 | D136: 5 | F136: =D136*E136 -> 0
B138: Take out and remove existing glazed steel window frame etc.:
A140: 20 | B140: Glazed steel window frame size 889 x 1248mm high from one brick wall. | C140: No | D140: 29 | F140: =D140*E140 -> 0
A142: 21 | B142: Glazed steel window frame size 889 x 457mm high from one brick wall. | C142: No | D142: 16 | F142: =D142*E142 -> 0
B144: Taking out and removing brickwork:
A146: 22 | B146: One block wall in beamfilling. | C146: m2 | D146: 25 | F146: =D146*E146 -> 0
B148: Structural Repairs:
B150: Brick/Block stitching.
A152: 23 | B152: Hack off existing plaster, a minimum of 400mm of both sides of the crack. Cut into existing mortar lines, 400mm on both sides of the crack. Place one Y8MM diameter bar, 800mm long, centred on the crack and caulk in with fresh mortar in every course to the full extent of the crack. Finish off by plastering and painting. | C152: m | D152: 24 | F152: =D152*E152 -> 0
B154: Hacking up/off and removing granolithic, screeds, plaster etc. from concrete or brickwork and preparing surfaces for new screeds, plaster, etc.
A156: 24 | B156: Plaster from walls in patches. | C156: m2 | D156: 283 | F156: =D156*E156 -> 0
A158: 25 | B158: Average 25mm screed from floors in patches. | C158: m2 | D158: 101 | F158: =D158*E158 -> 0
B160: TEMPORARY PARKHOMES
B162: Note: Rates for park homes to include standard windows, burglar bars, curtains and tracks, two tier steps for access, lighting fittings and black boards size: 1200 x 4800mm.
B164: M-Projects or other approved temporary park home units:
B166: Provide standard classroom size minimum 7 x 7m or nearest size temporary park homes on site for temporary educational facilities during the construction phase as herewith measured for 8 months, including levelling, two tier steps, positioning on site and connections to an electrical supply. NOTE - The tenderer rate should be inclusive of the rental of units for the 8 month period. | C166: No | D166: 7 | F166: =D166*E166 -> 0
A168: 26 | B168: Provision of electrical compliance certificates for park homes. | C168: No | D168: 7 | F168: =D168*E168 -> 0
A170: 27 | B170: Transport to and from site of park homes as per distance between supplier and site. | C170: No | D170: 7 | F170: =D170*E170 -> 0
B172: Desludging septic tank by a specialist including disposal:
A174: 28 | B174: Septic tank. | C174: m3 | D174: 20 | F174: =D174*E174 -> 0
B176: Total for Section No. 2: Bill No. 1 | F176: =SUM(F86:F174) -> 0
B179: BILL NO. 2 : EARTHWORKS (PROVISIONAL)
B181: (CPAP WORK GROUP 104 UNLESS OTHERWISE STATED).
B183: For Preambles refer to the relevant Clauses in the ASAQS Model Preambles for Trades 2008 and Supplementary Preambles which is incorporated in these Bills of Quantities.
B185: The Tenderer is referred to the relevant Clauses in the Standard Preambles to All Trades and to the Supplementary Preambles which are incorporated in these Bills of Quantities.
B187: SUPPLEMENTARY PREAMBLES
B189: Nature of ground:
B191: The nature of the ground is assumed to be loose sandy material, therefore earth, but possibly interspersed with hard rock or soft rock.
B193: Carting away of excavated material:
B195: Descriptions of carting away of excavated material shall be deemed to include loading excavated material onto trucks directly from the excavations or, alternatively, from stock piles situated on the building site.
B197: Block Notation
B199: Note: For the purpose of tendering only the total quantity shall be used in calculating the amount for inclusion in the tender at the tendered rates. Block A : Admin Block and Classrooms Block B : Church Hall Block C : 3 Classroom Block X - External Works Y - General
B201: EXCAVATION AND FILLING OTHER THAN BULK
B203: Excavation in earth not exceeding 2m deep:
A205: 1 | B205: Trenches. - apron slabs. | C205: m3 | D205: 3 | F205: =D205*E205 -> 0
A207: 2 | B207: Trenches - stair case. | C207: m3 | D207: 3 | F207: =D207*E207 -> 0
B209: Back excavation of vertical sides of excavation in earth for working space including backfilling compacted to 95% Mod AASHTO density:
A211: 3 | B211: Not exceeding 0,5m deep. | C211: m2 | D211: 6 | F211: =D211*E211 -> 0
B213: Extra over excavations other than bulk in earth for excavation in:
A215: 4 | B215: Soft rock. | C215: m3 | D215: 1 | F215: =D215*E215 -> 0
A217: 5 | B217: Hard rock. | C217: m3 | D217: 1 | F217: =D217*E217 -> 0
B219: Risk of collapse of excavations other than bulk:
A221: 6 | B221: Sides of trench and hole excavations not exceeding 1,5m deep. | C221: m2 | D221: 4 | F221: =D221*E221 -> 0
B223: KEEPING EXCAVATIONS FREE OF WATER
B225: Keeping excavations free of water:
A227: 7 | B227: Keeping excavations free of all water other than subterranean water. | C227: Item | D227: 1 | F227: =D227*E227 -> 0
B229: CARTING AWAY
B231: Extra over all excavations for loading, carting and dumping surplus excavated material (no allowance made for increase in bulk):
A233: 8 | B233: Surplus material from excavations and/or stock piles on site to a dumping site to be located by the contractor or as directed by the engineer. | C233: m3 | D233: 2.5 | F233: =D233*E233 -> 0
B235: EARTH FILLING, ETC
B237: Earth filling of G7 quality material supplied by the Contractor compacted to 95% Mod AASHTO density:
A239: 9 | B239: Under surface beds, etc. | C239: m3 | D239: 2 | F239: =D239*E239 -> 0
B241: Compaction of surfaces:
A243: 10 | B243: Compaction of ground surface under floors, etc. including scarifying for a depth of 150mm, breaking down oversize material, adding suitable material where necessary and compacting to 93% Mod AASHTO density. | C243: m2 | D243: 12 | F243: =D243*E243 -> 0
B245: TESTS
B247: Prescribed density tests on filling:
A249: 11 | B249: Modified AASHTO Density test. | C249: No | D249: 1 | F249: =D249*E249 -> 0
B251: SOIL POISONING
B253: Approved brand of anti-termite soil poison applied by a Registered Pest Control company and guaranteed against termite infestation for ten years:
A255: 12 | B255: Under floors, etc., including forming and poisoning shallow furrows against foundation walls, etc., filling in furrows and ramming. | C255: m2 | D255: 12 | F255: =D255*E255 -> 0
A257: 13 | B257: To bottom and sides of trenches. | C257: m2 | D257: 4 | F257: =D257*E257 -> 0
B259: Total for Section No. 2: Bill No. 2 | F259: =SUM(F205:F257) -> 0
B261: BILL NO.3 : MASONRY (PROVISIONAL)
B263: (CPAP WORK GROUP 118 UNLESS OTHERWISE STATED)
B265: SUPPLEMENTARY PREAMBLES
B267: The Tenderer is referred to the relevant Clauses in the Standard Preambles to All Trades and to the Supplementary Preambles which are incorporated in these Bills of Quantities.
B269: For Preambles refer to the relevant Clauses in the ASAQS Model Preambles for Trades 2008 and Supplementary Preambles which is incorporated in these Bills of Quantities.
B271: Block Notation
B273: Note: For the purpose of tendering only the total quantity shall be used in calculating the amount for inclusion in the tender at the tendered rates. Block A : Admin Block and Classrooms Block B : Church Hall Block C : 3 Classroom Block X - External Works Y - General
B275: BRICKWORK
B277: Sizes in descriptions:
B279: Where sizes in descriptions are given in brick units, 'one brick' shall represent the length and 'half brick' the width of a brick.
B281: Bagging and sealing:
B283: Walls in two skins described as 'bagged and sealed' shall be deemed to include having the outer face of the inner skin bagged with 1:6 cement and sand mixture and sealed with two coats of bitumen emulsion waterproofing coating.
B285: Face bricks:
B287: Bricks shall be ordered timeously to obtain uniformity in size and colour.
B289: Pointing:
B291: Descriptions of recessed pointing to fair face brickwork and face brickwork shall be deemed to include square recessed, hollow recessed, weathered pointing, etc.
B293: BRICKWORK IN SUPERSTRUCTURE
B295: Brickwork of NFP bricks (7 Mpa nominal compressive strength) in Class II mortar:
A297: 1 | B297: Half brick walls in beam filling. | C297: m2 | D297: 14 | F297: =D297*E297 -> 0
A299: 2 | B299: Half brick walls. | C299: m2 | D299: 17 | F299: =D299*E299 -> 0
B301: BLOCKWORK IN SUPERSTRUCTURE
A303: 3 | B303: One block wall. | C303: m2 | D303: 146 | F303: =D303*E303 -> 0
B305: BRICKWORK SUNDRIES
B307: Brickwork reinforcement:
A309: 4 | B309: 75mm Wide reinforcement built in horizontally. | C309: m | D309: 55 | F309: =D309*E309 -> 0
A311: 5 | B311: 150mm Wide reinforcement built in horizontally. | C311: m | D311: =D303*4 -> 584 | F311: =D311*E311 -> 0
B313: Galvanised hoop iron cramps, ties, etc:
A315: 6 | B315: 30 x 1,6mm Roof tie 1,6m long with one end fixed to timber and other end built into brickwork. | C315: No | D315: 69 | F315: =D315*E315 -> 0
B317: Air bricks etc:
A319: 7 | B319: 229 x 152mm Terra-cotta vermin proof air brick. | C319: No | D319: 2 | F319: =D319*E319 -> 0
B321: Prestressed fabricated concrete lintels including necessary temporary support:
A323: 8 | B323: 110 x 75mm Precast concrete lintels over doors and windows. | C323: m | D323: =54 -> 54 | F323: =D323*E323 -> 0
B325: Turning pieces to lintels:
A327: 9 | B327: 220mm wide turning pieces. | C327: m | D327: 54 | F327: =D327*E327 -> 0
B330: Total for Section 2: Bill No. 3 | F330: =SUM(F297:F329) -> 0
B332: BILL NO.4 : CONCRETE, FORMWORK AND REINFORCEMENT (PROVISIONAL)
B334: (CPAP WORK GROUP 110, 111 & 114 UNLESS OTHERWISE STATED)
B336: SUPPLEMENTARY PREAMBLES
B338: The Tenderer is referred to the relevant Clauses in the Standard Preambles to All Trades and to the Supplementary Preambles which are incorporated in these Bills of Quantities.
B340: For Preambles refer to the relevant Clauses in the ASAQS Model Preambles for Trades 2008 and Supplementary Preambles which is incorporated in these Bills of Quantities.
B342: Cost of tests:
B344: The costs of making, storing and testing of concrete test cubes as required under clause 7 'Tests' of SABS 1200 G shall include the cost of providing cube moulds necessary for the purpose, for testing costs and for submitting reports.
B346: Formwork:
B348: Descriptions of formwork shall be deemed to include use and waste only (except where described as left in or permanent), for fitting together in the required forms, wedging, plumbing and fixing to true angles and surfaces as necessary to ensure easy release.
B350: The vertical strutting shall be carried down to such construction as is sufficiently strong to afford the required support without damage and shall remain in position until the newly constructed work is able to support itself.
B352: Formwork to soffits of solid slabs etc., shall be deemed to be to slabs not exceeding 250mm thick unless otherwise described.
B354: Block Notation
B356: Note: For the purpose of tendering only the total quantity shall be used in calculating the amount for inclusion in the tender at the tendered rates. Block A : Admin Block and Classrooms Block B : Church Hall Block C : 3 Classroom Block X - External Works Y - General
B358: UNREINFORCED CONCRETE CAST ON/IN FORMWORK
B360: 20MPa/19mm concrete:
A362: 1 | B362: 200 x100mm thick concrete infill against walkway. | C362: m3 | D362: 1 | F362: =D362*E362 -> 0
B364: REINFORCED CONCRETE
B366: 30MPa/19mm Reinforced concrete cast in/on formwork (Provisional):
A368: 2 | B368: Apron. | C368: m3 | D368: 12 | F368: =D368*E368 -> 0
A370: 3 | B370: Concrete stairs. | C370: m3 | D370: 5 | F370: =D370*E370 -> 0
A372: 4 | B372: Concrete kitchen counter top. | C372: m3 | D372: 1 | F372: =D372*E372 -> 0
B374: TEST BLOCKS
A376: 5 | B376: Allow for all necessary concrete test cubes size 150 x 150 x 150mm cast from batches of concrete required for the entire contract as specified, made, stored, cured and tested in accordance with SABS Methods 861 and 863, including use of approved cube mould. | C376: Sets | D376: 3 | F376: =D376*E376 -> 0
B378: FORMWORK
B380: ROUGH FORMWORK (DEGREE OF ACCURACY II) (CPAP WORK GROUP NO. 111)
B382: Rough Formwork to Sides of:
A384: 6 | B384: Edges, risers, ends and reveals not exceeding 300mm high or wide. | C384: m | D384: 16 | F384: =D384*E384 -> 0
B386: CONCRETE SUNDRIES
B388: Finishing top surfaces of concrete smooth with a wood float:
A390: 7 | B390: Surface beds, slabs, etc. | C390: m2 | D390: 14 | F390: =D390*E390 -> 0
B392: MOVEMENT JOINTS, ETC.
B394: Movement joints between vertical concrete and brick surfaces:
... 444 more rows
